[Event "Czech Juniors Boys 2024"]
[Site "Jaromerice nad Rokytnou"]
[Date "2024.03.15"]
[Round "10.1"]
[White "Lang, Simon"]
[Black "Jares, Michal"]
[Result "0-1"]
[ECO "B19"]
[WhiteElo "2043"]
[BlackElo "2347"]
[Annotator "TA"]
[PlyCount "162"]
[EventDate "2024.03.10"]
[EventType "tourn"]
[EventCountry "CZE"]
[SourceTitle "playchess.com"]
[Source "ChessBase"]
[SourceQuality "1"]
[TimeControl "40/5400+30:1800+30"]

{[%evp 43,162,0,17,0,21,21,32,17,29,30,38,41,42,35,41,41,49,39,42,43,64,57,60,53,61,30,27,0,39,14,15,0,0,0,0,0,0,-42,-26,-33,-31,-42,0,-57,0,0,0,-7,0,-2,-2,-184,-187,-293,-299,-309,-300,-325,-312,-354,-356,-349,-314,-323,-312,-289,-289,-327,-290,-327,-270,-346,-346,-483,-470,-455,-426,-508,-500,-573,-569,-690,-675,-29974,-29975,-29976,-29977,-29977,-29978,-29977,-29973,-29972,-29972,-29980,-29978,-29978,-29979,-29980,-29981,-29986,-29982,-29982,-29978,-29978,-29977,-29977,-29978,-29983,-29984,-29985,-29986,-29987,-29988,-29988,-29989,-29989,-29990,-29993,-29979,-29994,-538]} 1. e4 {[%emt 0:00:18]} c6 {[%emt 0:00:02]} 2. d4 {[%emt 0:00:25]} d5 {[%emt 0:00:02]} 3. Nc3 {[%emt 0:00:20]} dxe4 {[%emt 0:00:03]} 4. Nxe4 {[%emt 0:00:10]} Bf5 {[%emt 0:00:06]} 5. Ng3 {[%emt 0:00:31]} Bg6 {[%emt 0:00:02]} 6. Nf3 {[%emt 0:00:41]} Nd7 {[%emt 0:00:53]} 7. h4 {[%emt 0:00:27]} h6 {[%emt 0:00:03]} 8. h5 {[%emt 0:00:18]} Bh7 {[%emt 0:00:01]} 9. Bd3 {[%emt 0:00:16]} Bxd3 {[%emt 0:00:04]} 10. Qxd3 {[%emt 0:00:09]} e6 {[%emt 0:00:08]} 11. Bd2 {[%emt 0:00:37]} Ngf6 {[%emt 0:00:17]} 12. O-O-O {[%emt 0:00:40]} Be7 {[%emt 0:00:03]} 13. Ne4 {[%emt 0:01:21]} Nxe4 {[%emt 0:00:34]} 14. Qxe4 {[%emt 0:00:07]} Nf6 {[%emt 0:00:16]} 15. Qe2 {[%emt 0:00:44]} Qd5 {[%emt 0:05:58]} 16. c4 {[%emt 0:03:01]} Qe4 {[%emt 0:02:54]} 17. Qxe4 {[%emt 0:01:07]} Nxe4 {[%emt 0:00:02]} 18. Be3 {[%emt 0:00:33]} Rd8 {[%emt 0:07:12]} 19. Kc2 {[%emt 0:03:28]} O-O {[%emt 0:03:02]} 20. Rhe1 {[%emt 0:03:18]} Nf6 {[%emt 0:04:08]} 21. Rh1 {[%emt 0:00:29]} Ng4 {[%emt 0:00:34]} 22. Rhe1 {[%emt 0:09:49]} Bf6 {[%emt 0:10:49]} 23. Rd2 {[%emt 0:15:40]} Nxe3+ {[%emt 0:08:57]} 24. Rxe3 {[%emt 0:16:04]} Rd7 {[%emt 0:00:26]} 25. Red3 {[%emt 0:02:24]} Rfd8 {[%emt 0:02:05]} 26. Ne5 {[%emt 0:02:30]} Rc7 {[%emt 0:00:40]} 27. f4 {[%emt 0:05:09]} Rd6 {[%emt 0:07:59]} 28. Kd1 {[%emt 0:06:25]} Kf8 {[%emt 0:03:42]} 29. Ke2 {[%emt 0:00:35]} Ke8 {[%emt 0:01:50]} 30. Kf3 {[%emt 0:01:03]} Be7 {[%emt 0:12:09]} 31. Ke4 {[%emt 0:02:13]} f5+ {[%emt 0:00:48]} 32. Kf3 {[%emt 0:00:37]} Bf6 {[%emt 0:00:34]} 33. Ke2 {[%emt 0:06:32]} Rd8 {[%emt 0:05:08]} 34. g4 {[%emt 0:09:51]} fxg4 {[%emt 0:02:25]} 35. Rg3 {[%emt 0:01:03]} Rd6 {[%emt 0:06:41]} 36. Rxg4 {[%emt 0:01:10]} (36. Nxg4 Bxd4 (36... Rxd4 $2 37. Nxf6+ Kf7 38. Rxd4 $18) 37. Kf3 c5 $17) 36... c5 {[%emt 0:01:01]} 37. d5 {[%emt 0:02:21]} exd5 {[%emt 0:01:56]} 38. Rxd5 {[%emt 0:01:44]} Ra6 {[%emt 0:01:19]} 39. Rg2 {[%emt 0:05:12]} Rxa2 {[%emt 0:00:50]} 40. Kd3 {[%emt 0:00:17]} b6 {[%emt 0:13:44]} 41. Ke4 {[%emt 0:06:33]} Ra1 {[%emt 0:01:47]} 42. Kf5 {[%emt 0:05:40]} Re1 {[%emt 0:09:54]} 43. Ke6 {[%emt 0:11:50]} ({White should play} 43. Rgd2 $11) 43... Rh1 {[%emt 0:05:44]} (43... Rb7 $15) 44. Kd6 $11 {[%emt 0:01:34]} Re7 {[%emt 0:01:09]} 45. Ng6 {[%emt 0:02:19]} Re4 {[%emt 0:02:03]} (45... Rd7+ $6 46. Kc6 Rd1 47. Ne5 Bxe5 48. fxe5 $18) 46. Kc7 {[%emt 0:01:00]} Rhe1 {[%emt 0:01:50]} ({Weaker is} 46... Rxc4 47. Re2+) 47. Ne5 $2 {[%emt 0:01:31]} (47. b3 $11) 47... Rxf4 $19 {[%emt 0:01:53]} (47... Bxe5+ 48. fxe5 Kf7 49. Rf2+ (49. Rd7+ Ke6 $11) 49... Ke7 50. b3 $16) 48. Nc6 {[%emt 0:02:39]} (48. Nd7 {might work better.}) 48... Rxc4 $19 {[%emt 0:00:51]} 49. Nxa7 {[%emt 0:00:13]} Rb4 {[%emt 0:02:00]} 50. Nc8 {[%emt 0:01:53]} Rxb2 {[%emt 0:00:47]} 51. Rxb2 {[%emt 0:00:17]} Bxb2 {[%emt 0:00:01]} 52. Nxb6 {[%emt 0:00:26]} Bd4 {[%emt 0:01:56]} 53. Kd6 {[%emt 0:00:28]} Re7 {[%emt 0:02:20]} 54. Rf5 {[%emt 0:00:45]} Rf7 {[%emt 0:00:50]} 55. Rd5 {[%emt 0:00:32]} Rf6+ {[%emt 0:01:17]} 56. Kc7 {[%emt 0:00:06]} Re6 {[%emt 0:00:38]} 57. Rf5 {[%emt 0:01:03]} Re5 {[%emt 0:00:38]} 58. Rf3 {[%emt 0:00:30]} Rxh5 {[%emt 0:00:19]} 59. Kd6 {[%emt 0:00:22]} Bf6 {[%emt 0:01:06]} 60. Nd5 {[%emt 0:00:31]} Kf7 {[%emt 0:00:30]} 61. Kxc5 {[%emt 0:00:36]} Ke6 {[%emt 0:01:40]} 62. Re3+ {[%emt 0:00:04]} Re5 {[%emt 0:00:10]} 63. Kc4 {[%emt 0:00:29]} Rxe3 {[%emt 0:02:10]} 64. Nxe3 {[%emt 0:00:02]} Ke5 {[%emt 0:00:38]} 65. Kd3 {[%emt 0:00:30]} h5 {[%emt 0:00:34]} 66. Ke2 {[%emt 0:00:14]} g5 {[%emt 0:00:25]} 67. Kf3 {[%emt 0:00:19]} Be7 {[%emt 0:00:34]} 68. Ng2 {[%emt 0:00:22]} Bc5 {[%emt 0:00:30]} 69. Ne1 {[%emt 0:00:58]} Kf5 {[%emt 0:00:10]} 70. Kg2 {[%emt 0:00:48]} g4 {[%emt 0:00:32]} 71. Kg3 {[%emt 0:00:35]} Be7 {[%emt 0:00:47]} 72. Nd3 {[%emt 0:00:46]} Kg5 {[%emt 0:00:40]} 73. Kg2 {[%emt 0:00:39]} Bd8 {[%emt 0:00:26]} 74. Nf2 {[%emt 0:00:35]} Kf5 {[%emt 0:00:42]} 75. Kh2 {[%emt 0:00:25]} Bb6 {[%emt 0:00:18]} 76. Nd3 {[%emt 0:00:26]} h4 {[%emt 0:00:27]} 77. Ne1 {[%emt 0:00:08]} Bc7+ {[%emt 0:00:21]} 78. Kh1 {[%emt 0:00:22]} h3 {[%emt 0:00:38]} 79. Nd3 {[%emt 0:00:25]} g3 {[%emt 0:00:32]} 80. Nf2 {[%emt 0:00:33]} g2+ {[%emt 0:00:21]} 81. Kg1 {[%emt 0:00:07]} Bb6 {[%emt 0:00:02]} 0-1

[Event "Czech Juniors Boys 2024"]
[Site "Jaromerice nad Rokytnou"]
[Date "2024.03.15"]
[Round "10.2"]
[White "Jun, Rudolf"]
[Black "Frank, Adam"]
[Result "0-1"]
[ECO "C95"]
[WhiteElo "2243"]
[BlackElo "2284"]
[Annotator "RC"]
[PlyCount "76"]
[EventDate "2024.03.10"]
[EventType "tourn"]
[EventCountry "CZE"]
[SourceTitle "playchess.com"]
[Source "ChessBase"]
[SourceQuality "1"]
[TimeControl "40/5400+30:1800+30"]

1. e4 {[%emt 0:00:03]} e5 {[%emt 0:00:13]} 2. Nf3 {[%emt 0:00:30]} Nc6 {[%emt 0:00:05]} 3. Bb5 {[%emt 0:00:35]} a6 {[%emt 0:00:06]} 4. Ba4 {[%emt 0:00:12]} Nf6 {[%emt 0:00:06]} 5. O-O {[%emt 0:00:07]} b5 {[%emt 0:00:12]} 6. Bb3 {[%emt 0:00:08]} Be7 {[%emt 0:00:04]} 7. Re1 {[%emt 0:01:12]} d6 {[%emt 0:00:17]} 8. c3 {[%emt 0:00:31]} O-O {[%emt 0:00:05]} 9. h3 {[%emt 0:00:05]} Nb8 {[%emt 0:00:04]} 10. a4 {[%emt 0:01:40]} Bb7 {[%emt 0:00:26]} 11. Bc2 {[%emt 0:02:10]} Nbd7 {[%emt 0:01:06]} 12. d4 {[%emt 0:00:47]} Re8 {[%emt 0:00:20]} 13. dxe5 {[%emt 0:01:44]} dxe5 {[%emt 0:00:06]} 14. Bg5 {[%emt 0:03:23]} h6 {[%emt 0:12:07]} 15. Bh4 {[%emt 0:00:27]} Nh5 {[%emt 0:14:48]} 16. Bxe7 {[%emt 0:00:49]} Qxe7 {[%emt 0:00:05]} 17. axb5 {[%emt 0:01:17]} Nf4 {[%emt 0:08:44]} 18. g3 {[%emt 0:06:06]} Nxh3+ {[%emt 0:01:00]} 19. Kg2 {[%emt 0:00:05]} Ng5 {[%emt 0:03:19]} 20. Nxg5 {[%emt 0:00:49]} hxg5 {[%emt 0:00:08]} 21. bxa6 {[%emt 0:00:45]} Bxa6 {[%emt 0:00:33]} 22. Ba4 {[%emt 0:10:30]} Red8 {[%emt 0:00:59]} 23. Qh5 {[%emt 0:14:48]} g6 {[%emt 0:07:19]} 24. Qh3 {[%emt 0:04:19]} Nc5 {[%emt 0:00:00]} 25. Rh1 {[%emt 0:11:58]} Qf6 {[%emt 0:00:00]} 26. Qh7+ {[%emt 0:02:45]} Kf8 {[%emt 0:00:00]} 27. Qh8+ {[%emt 0:02:50]} Ke7 {[%emt 0:00:00]} 28. Qxf6+ {[%emt 0:00:11]} Kxf6 {[%emt 0:00:00]} 29. b3 {[%emt 0:01:17]} Bb7 {[%emt 0:05:12]} 30. g4 {[%emt 0:00:09]} Bxe4+ {[%emt 0:05:51]} 31. f3 {[%emt 0:00:11]} Bc6 {[%emt 0:00:08]} 32. Na3 {[%emt 0:01:28]} Nxa4 {[%emt 0:00:10]} 33. bxa4 {[%emt 0:00:20]} Rd3 {[%emt 0:00:13]} 34. Kf2 {[%emt 0:00:54]} Rxa4 {[%emt 0:01:07]} 35. Rhc1 {[%emt 0:00:40]} Rxf3+ {[%emt 0:00:10]} 36. Ke2 {[%emt 0:00:08]} Rxg4 {[%emt 0:00:05]} 37. Rg1 {[%emt 0:00:33]} Rxg1 {[%emt 0:00:08]} 38. Rxg1 {[%emt 0:00:05]} Rxc3 {[%emt 0:00:03]} 0-1

[Event "Czech Juniors Boys 2024"]
[Site "Jaromerice nad Rokytnou"]
[Date "2024.03.15"]
[Round "10.3"]
[White "Seidl, Jan"]
[Black "Hak, David"]
[Result "0-1"]
[ECO "D74"]
[WhiteElo "2230"]
[BlackElo "2283"]
[Annotator "RC"]
[PlyCount "84"]
[EventDate "2024.03.10"]
[EventType "tourn"]
[EventCountry "CZE"]
[SourceTitle "playchess.com"]
[Source "ChessBase"]
[SourceQuality "1"]
[TimeControl "40/5400+30:1800+30"]

1. d4 {[%emt 0:00:03]} Nf6 {[%emt 0:00:07]} 2. c4 {[%emt 0:00:04]} g6 {[%emt 0:00:13]} 3. g3 {[%emt 0:00:44]} Bg7 {[%emt 0:00:07]} 4. Bg2 {[%emt 0:00:04]} O-O {[%emt 0:00:07]} 5. Nc3 {[%emt 0:00:10]} Nc6 {[%emt 0:05:33]} 6. Nf3 {[%emt 0:00:42]} d5 {[%emt 0:01:48]} 7. cxd5 {[%emt 0:04:09]} Nxd5 {[%emt 0:00:21]} 8. O-O {[%emt 0:01:55]} Nxc3 {[%emt 0:09:43]} 9. bxc3 {[%emt 0:00:06]} Na5 {[%emt 0:01:18]} 10. Bf4 {[%emt 0:12:32]} b6 {[%emt 0:12:20]} 11. Qd3 {[%emt 0:12:36]} Bb7 {[%emt 0:02:07]} 12. Rac1 {[%emt 0:01:49]} c5 {[%emt 0:02:06]} 13. e4 {[%emt 0:05:01]} Rc8 {[%emt 0:02:05]} 14. d5 {[%emt 0:05:02]} Qd7 {[%emt 0:11:14]} 15. c4 {[%emt 0:03:07]} Ba6 {[%emt 0:03:26]} 16. Nd2 {[%emt 0:00:06]} Bb2 {[%emt 0:14:12]} 17. Rc2 {[%emt 0:02:17]} Bd4 {[%emt 0:00:31]} 18. Nb3 {[%emt 0:02:14]} Qa4 {[%emt 0:14:14]} 19. Nxd4 {[%emt 0:18:11]} cxd4 {[%emt 0:00:48]} 20. Rfc1 {[%emt 0:01:48]} Rxc4 {[%emt 0:06:13]} 21. Rxc4 {[%emt 0:00:20]} Nxc4 {[%emt 0:01:23]} 22. Qxd4 {[%emt 0:00:58]} Rd8 {[%emt 0:00:52]} 23. Bf1 {[%emt 0:06:11]} Rc8 {[%emt 0:00:01]} 24. Bh6 {[%emt 0:02:21]} f6 {[%emt 0:00:14]} 25. d6 {[%emt 0:00:37]} Kf7 {[%emt 0:07:56]} 26. dxe7 {[%emt 0:09:28]} Kxe7 {[%emt 0:00:58]} 27. e5 {[%emt 0:01:20]} fxe5 {[%emt 0:02:28]} 28. Bg5+ {[%emt 0:01:46]} Kf8 {[%emt 0:00:23]} 29. Qh4 {[%emt 0:01:47]} Qd7 {[%emt 0:00:52]} 30. Bh6+ {[%emt 0:00:36]} Ke8 {[%emt 0:01:13]} 31. Qf6 {[%emt 0:04:13]} Qf7 {[%emt 0:00:20]} 32. Qh4 {[%emt 0:01:18]} b5 {[%emt 0:00:14]} 33. Rd1 {[%emt 0:00:56]} Bb7 {[%emt 0:00:22]} 34. Rd3 {[%emt 0:00:54]} e4 {[%emt 0:00:44]} 35. Rd4 {[%emt 0:00:04]} a6 {[%emt 0:00:37]} 36. Bh3 {[%emt 0:00:26]} Ne5 {[%emt 0:00:31]} 37. Rxe4 {[%emt 0:00:42]} Bxe4 {[%emt 0:00:23]} 38. Qxe4 {[%emt 0:00:22]} Rc5 {[%emt 0:00:18]} 39. Be3 {[%emt 0:01:17]} Qd5 {[%emt 0:00:25]} 40. Qf4 {[%emt 0:01:07]} Nf3+ {[%emt 0:00:41]} 41. Kh1 {[%emt 0:30:10]} Qd1+ {[%emt 0:30:26]} 42. Kg2 {[%emt 0:00:04]} Ne1+ {[%emt 0:00:14]} 0-1

[Event "Czech Juniors Boys 2024"]
[Site "Jaromerice nad Rokytnou"]
[Date "2024.03.15"]
[Round "10.4"]
[White "Soucek, Petr"]
[Black "Bohacek, Jan Andrej"]
[Result "1/2-1/2"]
[ECO "B12"]
[WhiteElo "2209"]
[BlackElo "2140"]
[Annotator "RC"]
[PlyCount "89"]
[EventDate "2024.03.10"]
[EventType "tourn"]
[EventCountry "CZE"]
[SourceTitle "playchess.com"]
[Source "ChessBase"]
[SourceQuality "1"]
[TimeControl "40/5400+30:1800+30"]

1. e4 {[%emt 0:00:17]} c6 {[%emt 0:00:06]} 2. d4 {[%emt 0:00:04]} d5 {[%emt 0:00:04]} 3. e5 {[%emt 0:00:05]} c5 {[%emt 0:00:04]} 4. dxc5 {[%emt 0:00:03]} e6 {[%emt 0:00:06]} 5. a3 {[%emt 0:00:04]} Bxc5 {[%emt 0:00:23]} 6. Bd3 {[%emt 0:00:04]} Nd7 {[%emt 0:19:32]} 7. Nf3 {[%emt 0:00:52]} f6 {[%emt 0:00:19]} 8. b4 {[%emt 0:30:23]} Be7 {[%emt 0:01:09]} 9. Bb2 {[%emt 0:03:25]} a5 {[%emt 0:04:56]} 10. O-O {[%emt 0:14:01]} Nh6 {[%emt 0:20:52]} 11. c4 {[%emt 0:11:36]} Nxe5 {[%emt 0:09:27]} 12. Nxe5 {[%emt 0:00:59]} fxe5 {[%emt 0:00:09]} 13. cxd5 {[%emt 0:03:04]} O-O {[%emt 0:05:49]} 14. Nc3 {[%emt 0:05:15]} axb4 {[%emt 0:03:46]} 15. axb4 {[%emt 0:00:50]} Rxa1 {[%emt 0:00:12]} 16. Bxa1 {[%emt 0:00:09]} Bxb4 {[%emt 0:02:37]} 17. Qb3 {[%emt 0:08:16]} Bxc3 {[%emt 0:10:05]} 18. Bxc3 {[%emt 0:01:50]} exd5 {[%emt 0:01:05]} 19. Bxe5 {[%emt 0:00:27]} Ng4 {[%emt 0:02:08]} 20. Bg3 {[%emt 0:01:12]} Nf6 {[%emt 0:06:21]} 21. Rd1 {[%emt 0:01:18]} Qe7 {[%emt 0:02:00]} 22. f3 {[%emt 0:01:44]} Kh8 {[%emt 0:01:51]} 23. Bf2 {[%emt 0:01:44]} Qe5 {[%emt 0:04:18]} 24. Re1 {[%emt 0:00:35]} Qg5 {[%emt 0:01:03]} 25. Qb4 {[%emt 0:00:54]} Rg8 {[%emt 0:00:53]} 26. Bf1 {[%emt 0:03:40]} Qf5 {[%emt 0:01:58]} 27. Bd4 {[%emt 0:00:32]} Qf4 {[%emt 0:00:39]} 28. Qc3 {[%emt 0:00:31]} Bd7 {[%emt 0:00:40]} 29. Re5 {[%emt 0:01:54]} Rc8 {[%emt 0:00:54]} 30. Qe3 {[%emt 0:01:01]} Qxe3+ {[%emt 0:00:11]} 31. Rxe3 {[%emt 0:00:06]} Re8 {[%emt 0:01:06]} 32. Kf2 {[%emt 0:00:43]} Kg8 {[%emt 0:00:55]} 33. g4 {[%emt 0:01:25]} Kf7 {[%emt 0:00:42]} 34. Bd3 {[%emt 0:00:10]} h6 {[%emt 0:00:30]} 35. h4 {[%emt 0:00:11]} Rxe3 {[%emt 0:00:32]} 36. Kxe3 {[%emt 0:00:06]} Bc6 {[%emt 0:00:36]} 37. Kf4 {[%emt 0:01:05]} Nd7 {[%emt 0:00:21]} 38. h5 {[%emt 0:01:16]} b5 {[%emt 0:00:23]} 39. Bg6+ {[%emt 0:00:09]} Kf8 {[%emt 0:00:10]} 40. Kf5 {[%emt 0:00:21]} b4 {[%emt 0:01:01]} 41. Ke6 {[%emt 0:10:16]} b3 {[%emt 0:08:30]} 42. Bd3 {[%emt 0:22:05]} b2 {[%emt 0:07:34]} 43. Bg6 {[%emt 0:02:44]} Nf6 {[%emt 0:05:41]} 44. Bxb2 {[%emt 0:02:57]} d4 {[%emt 0:01:49]} 45. Bxd4 {[%emt 0:00:37]} 1/2-1/2

[Event "Czech Juniors Boys 2024"]
[Site "Jaromerice nad Rokytnou"]
[Date "2024.03.15"]
[Round "10.5"]
[White "Vilimek, Vit"]
[Black "Bokhnak, Timofey"]
[Result "1-0"]
[ECO "B23"]
[WhiteElo "2061"]
[BlackElo "2241"]
[Annotator "RC"]
[PlyCount "84"]
[EventDate "2024.03.10"]
[EventType "tourn"]
[EventCountry "CZE"]
[SourceTitle "playchess.com"]
[Source "ChessBase"]
[SourceQuality "1"]
[TimeControl "40/5400+30:1800+30"]

1. e4 {[%emt 0:00:01]} c5 {[%emt 0:00:32]} 2. Nc3 {[%emt 0:00:08]} e6 {[%emt 0:00:26]} 3. f4 {[%emt 0:00:59]} d5 {[%emt 0:04:17]} 4. d3 {[%emt 0:00:09]} Nc6 {[%emt 0:02:53]} 5. Nf3 {[%emt 0:01:01]} a6 {[%emt 0:05:50]} 6. g3 {[%emt 0:03:20]} dxe4 {[%emt 0:08:55]} 7. dxe4 {[%emt 0:00:08]} Qxd1+ {[%emt 0:00:33]} 8. Nxd1 {[%emt 0:00:41]} b6 {[%emt 0:05:38]} 9. c3 {[%emt 0:02:08]} Bb7 {[%emt 0:01:37]} 10. Bd3 {[%emt 0:00:57]} O-O-O {[%emt 0:02:18]} 11. Nf2 {[%emt 0:00:18]} Be7 {[%emt 0:12:26]} 12. Be3 {[%emt 0:05:56]} Nf6 {[%emt 0:01:53]} 13. O-O-O {[%emt 0:01:13]} Nd7 {[%emt 0:02:06]} 14. a4 {[%emt 0:04:45]} Na5 {[%emt 0:05:16]} 15. Nd2 {[%emt 0:00:33]} Kc7 {[%emt 0:02:14]} 16. Kc2 {[%emt 0:02:54]} Bc6 {[%emt 0:02:11]} 17. Ra1 {[%emt 0:03:52]} Ra8 {[%emt 0:02:43]} 18. Rhd1 {[%emt 0:04:43]} Rhb8 {[%emt 0:03:05]} 19. Rdb1 {[%emt 0:10:17]} b5 {[%emt 0:09:06]} 20. axb5 {[%emt 0:09:50]} axb5 {[%emt 0:00:06]} 21. b4 {[%emt 0:03:20]} cxb4 {[%emt 0:05:57]} 22. cxb4 {[%emt 0:01:16]} Nc4 {[%emt 0:00:07]} 23. Nxc4 {[%emt 0:04:46]} bxc4 {[%emt 0:01:39]} 24. Bxc4 {[%emt 0:00:08]} Rxa1 {[%emt 0:03:56]} 25. Rxa1 {[%emt 0:00:20]} Rxb4 {[%emt 0:00:17]} 26. Kc3 {[%emt 0:00:59]} Rb7 {[%emt 0:00:12]} 27. Bd4 {[%emt 0:06:20]} Bb4+ {[%emt 0:01:35]} 28. Kd3 {[%emt 0:08:32]} Bc5 {[%emt 0:00:42]} 29. Bxc5 {[%emt 0:04:38]} Nxc5+ {[%emt 0:00:04]} 30. Kd4 {[%emt 0:00:08]} Nb3+ {[%emt 0:03:23]} 31. Bxb3 {[%emt 0:00:45]} Rxb3 {[%emt 0:00:06]} 32. Ra7+ {[%emt 0:11:57]} Bb7 {[%emt 0:00:07]} 33. Nd3 {[%emt 0:00:09]} Kd6 {[%emt 0:03:05]} 34. Ne5 {[%emt 0:05:32]} Kc7 {[%emt 0:03:42]} 35. Nxf7 {[%emt 0:01:31]} Kb6 {[%emt 0:01:01]} 36. Ra4 {[%emt 0:00:52]} Bc6 {[%emt 0:01:41]} 37. Rc4 {[%emt 0:00:59]} Rb2 {[%emt 0:02:12]} 38. Ng5 {[%emt 0:01:22]} Bd7 {[%emt 0:01:20]} 39. Nxh7 {[%emt 0:00:55]} Rxh2 {[%emt 0:00:12]} 40. Nf8 {[%emt 0:00:46]} Bb5 {[%emt 0:00:19]} 41. Rc3 {[%emt 0:30:46]} Rh6 {[%emt 0:32:40]} 42. Ke5 {[%emt 0:00:00]} Rf6 {[%emt 0:00:00]} 1-0

[Event "Czech Juniors Boys 2024"]
[Site "Jaromerice nad Rokytnou"]
[Date "2024.03.15"]
[Round "10.6"]
[White "Skypala, Ondrej"]
[Black "Paseka, Matyas"]
[Result "1-0"]
[ECO "A02"]
[WhiteElo "2234"]
[BlackElo "2233"]
[Annotator "ChessBase"]
[PlyCount "53"]
[EventDate "2024.03.10"]
[EventType "tourn"]
[EventCountry "CZE"]
[SourceTitle "playchess.com"]
[Source "ChessBase"]
[SourceQuality "1"]
[TimeControl "40/5400+30:1800+30"]

1. f4 {[%emt 0:00:01]} Nf6 {[%emt 0:02:49]} 2. Nf3 {[%emt 0:00:06]} g6 {[%emt 0:00:15]} 3. g3 {[%emt 0:00:04]} Bg7 {[%emt 0:00:11]} 4. Bg2 {[%emt 0:00:05]} d6 {[%emt 0:01:53]} 5. O-O {[%emt 0:00:12]} Nbd7 {[%emt 0:06:22]} 6. d3 {[%emt 0:01:06]} e5 {[%emt 0:02:30]} 7. Nc3 {[%emt 0:00:08]} c6 {[%emt 0:00:49]} 8. e4 {[%emt 0:02:02]} b5 {[%emt 0:05:24]} 9. Kh1 {[%emt 0:03:04]} Qc7 {[%emt 0:03:07]} 10. d4 {[%emt 0:03:30]} b4 {[%emt 0:06:05]} 11. dxe5 {[%emt 0:03:39]} dxe5 {[%emt 0:03:18]} 12. fxe5 {[%emt 0:00:09]} bxc3 {[%emt 0:14:22]} 13. exf6 {[%emt 0:00:14]} Bxf6 {[%emt 0:00:16]} 14. Bf4 {[%emt 0:03:40]} cxb2 {[%emt 0:13:00]} 15. Rb1 {[%emt 0:00:05]} Qb6 {[%emt 0:01:13]} 16. e5 {[%emt 0:02:35]} Bg7 {[%emt 0:03:48]} 17. e6 {[%emt 0:03:03]} fxe6 {[%emt 0:00:43]} 18. Qd6 {[%emt 0:00:32]} Nb8 {[%emt 0:27:40]} 19. Bg5 {[%emt 0:01:28]} Bf8 {[%emt 0:02:08]} 20. Qe5 {[%emt 0:00:26]} Rg8 {[%emt 0:00:04]} 21. Rxb2 {[%emt 0:00:30]} Bg7 {[%emt 0:00:11]} 22. Qd6 {[%emt 0:08:47]} Bf8 {[%emt 0:00:04]} 23. Qf4 {[%emt 0:00:04]} Qxb2 {[%emt 0:01:02]} 24. Ne5 {[%emt 0:00:05]} Qb7 {[%emt 0:00:29]} 25. Rd1 {[%emt 0:00:05]} Qc7 {[%emt 0:02:39]} 26. Rd8+ {[%emt 0:00:05]} Qxd8 {[%emt 0:00:03]} 27. Qf7# {[%emt 0:00:04]} 1-0

[Event "Czech Juniors Boys 2024"]
[Site "Jaromerice nad Rokytnou"]
[Date "2024.03.16"]
[Round "11.1"]
[White "Paseka, Matyas"]
[Black "Lang, Simon"]
[Result "1-0"]
[ECO "C04"]
[WhiteElo "2233"]
[BlackElo "2043"]
[Annotator "RC"]
[PlyCount "67"]
[EventDate "2024.03.10"]
[EventType "tourn"]
[EventCountry "CZE"]
[SourceTitle "playchess.com"]
[Source "ChessBase"]
[SourceQuality "1"]
[TimeControl "40/5400+30:1800+30"]

1. e4 {[%emt 0:00:03]} e6 {[%emt 0:00:49]} 2. d4 {[%emt 0:00:07]} d5 {[%emt 0:00:10]} 3. Nd2 {[%emt 0:00:07]} Nc6 {[%emt 0:00:50]} 4. Ngf3 {[%emt 0:00:09]} Nf6 {[%emt 0:00:15]} 5. e5 {[%emt 0:00:07]} Nd7 {[%emt 0:00:08]} 6. Be2 {[%emt 0:00:09]} f6 {[%emt 0:00:34]} 7. exf6 {[%emt 0:00:06]} Qxf6 {[%emt 0:00:09]} 8. Nf1 {[%emt 0:00:08]} Bd6 {[%emt 0:01:07]} 9. Ne3 {[%emt 0:00:28]} b6 {[%emt 0:01:34]} 10. O-O {[%emt 0:00:33]} Bb7 {[%emt 0:01:19]} 11. Ng4 {[%emt 0:07:09]} Qf5 {[%emt 0:01:46]} 12. Nh4 {[%emt 0:00:50]} Qf7 {[%emt 0:00:12]} 13. c3 {[%emt 0:00:31]} e5 {[%emt 0:10:06]} 14. dxe5 {[%emt 0:19:40]} Ncxe5 {[%emt 0:02:18]} 15. Nxe5 {[%emt 0:00:34]} Bxe5 {[%emt 0:05:15]} 16. f4 {[%emt 0:03:48]} Bf6 {[%emt 0:00:50]} 17. Nf3 {[%emt 0:01:39]} O-O-O {[%emt 0:05:03]} 18. a4 {[%emt 0:08:12]} a5 {[%emt 0:05:46]} 19. Be3 {[%emt 0:00:15]} Rhe8 {[%emt 0:05:20]} 20. Bd4 {[%emt 0:02:55]} Re4 {[%emt 0:04:07]} 21. Ng5 {[%emt 0:02:29]} Bxg5 {[%emt 0:02:31]} 22. fxg5 {[%emt 0:00:06]} Qe7 {[%emt 0:05:47]} 23. Bd3 {[%emt 0:04:03]} Re6 {[%emt 0:03:00]} 24. Qg4 {[%emt 0:11:50]} c5 {[%emt 0:06:26]} 25. Bxg7 {[%emt 0:10:51]} Rg8 {[%emt 0:10:14]} 26. Bf5 {[%emt 0:00:17]} Rd6 {[%emt 0:04:25]} 27. Bf6 {[%emt 0:00:57]} Qe3+ {[%emt 0:00:21]} 28. Kh1 {[%emt 0:00:09]} Kc7 {[%emt 0:00:17]} 29. Bxd7 {[%emt 0:02:02]} Rxd7 {[%emt 0:00:09]} 30. Rae1 {[%emt 0:01:19]} Qd2 {[%emt 0:00:51]} 31. Qe6 {[%emt 0:10:34]} d4 {[%emt 0:03:04]} 32. Be5+ {[%emt 0:01:04]} Kc8 {[%emt 0:00:17]} 33. Qxg8+ {[%emt 0:00:07]} Rd8 {[%emt 0:00:06]} 34. Qe6+ {[%emt 0:00:04]} 1-0

[Event "Czech Juniors Boys 2024"]
[Site "Jaromerice nad Rokytnou"]
[Date "2024.03.16"]
[Round "11.2"]
[White "Bokhnak, Timofey"]
[Black "Skypala, Ondrej"]
[Result "1-0"]
[ECO "B01"]
[WhiteElo "2241"]
[BlackElo "2234"]
[Annotator "RC"]
[PlyCount "61"]
[EventDate "2024.03.10"]
[EventType "tourn"]
[EventCountry "CZE"]
[SourceTitle "playchess.com"]
[Source "ChessBase"]
[SourceQuality "1"]
[TimeControl "40/5400+30:1800+30"]

1. e4 {[%emt 0:00:02]} d5 {[%emt 0:00:03]} 2. exd5 {[%emt 0:00:10]} Qxd5 {[%emt 0:00:03]} 3. d4 {[%emt 0:00:48]} Nf6 {[%emt 0:08:02]} 4. Nf3 {[%emt 0:00:54]} Bg4 {[%emt 0:00:06]} 5. Be2 {[%emt 0:00:48]} Nc6 {[%emt 0:07:25]} 6. O-O {[%emt 0:04:47]} O-O-O {[%emt 0:02:40]} 7. Be3 {[%emt 0:01:26]} e6 {[%emt 0:14:21]} 8. Nbd2 {[%emt 0:05:40]} Bd6 {[%emt 0:03:14]} 9. Re1 {[%emt 0:04:23]} Qf5 {[%emt 0:05:58]} 10. Nc4 {[%emt 0:05:51]} e5 {[%emt 0:11:26]} 11. c3 {[%emt 0:03:39]} e4 {[%emt 0:03:01]} 12. Nxd6+ {[%emt 0:01:25]} Rxd6 {[%emt 0:01:40]} 13. Nd2 {[%emt 0:00:25]} h5 {[%emt 0:01:27]} 14. Nc4 {[%emt 0:04:56]} Rd7 {[%emt 0:00:51]} 15. b4 {[%emt 0:02:51]} Nd5 {[%emt 0:00:54]} 16. Qc2 {[%emt 0:03:03]} Bxe2 {[%emt 0:00:19]} 17. Rxe2 {[%emt 0:00:15]} h4 {[%emt 0:02:43]} 18. f3 {[%emt 0:14:02]} Nf6 {[%emt 0:05:42]} 19. Nd2 {[%emt 0:03:56]} Re7 {[%emt 0:02:42]} 20. Bf2 {[%emt 0:03:33]} h3 {[%emt 0:04:06]} 21. Nxe4 {[%emt 0:02:32]} Nxe4 {[%emt 0:00:15]} 22. fxe4 {[%emt 0:00:35]} Qg4 {[%emt 0:00:05]} 23. Bg3 {[%emt 0:01:08]} f5 {[%emt 0:00:57]} 24. Rf1 {[%emt 0:01:04]} Rxe4 {[%emt 0:06:02]} 25. Rxe4 {[%emt 0:00:19]} fxe4 {[%emt 0:00:14]} 26. Rf4 {[%emt 0:01:18]} Qh5 {[%emt 0:03:23]} 27. Rh4 {[%emt 0:03:58]} Qe8 {[%emt 0:00:05]} 28. Qxe4 {[%emt 0:00:35]} Qxe4 {[%emt 0:00:06]} 29. Rxe4 {[%emt 0:00:08]} hxg2 {[%emt 0:00:03]} 30. d5 {[%emt 0:00:37]} Nb8 {[%emt 0:00:20]} 31. Re7 {[%emt 0:01:21]} 1-0